[Event "Hungarian Junior Rapid-ch 2024"]
[Site "Budapest"]
[Date "2024.03.23"]
[Round "9"]
[White "Juhasz, Agoston"]
[Black "Karacsonyi, Gellert"]
[Result "1/2-1/2"]
[ECO "C49"]
[WhiteElo "2406"]
[BlackElo "2386"]
[Annotator "TA"]
[PlyCount "45"]
[EventDate "2024.03.20"]
[EventType "swiss"]
[EventCountry "HUN"]
[SourceTitle "playchess.com"]
[Source "ChessBase"]
[SourceQuality "1"]
[TimeControl "600+5"]

{[%evp 18,45,13,13,11,0,24,-10,9,8,11,16,22,29,21,29,22,2,15,17,5,0,25,20,29,0,0,0,0,-12]} 1. e4 {[%emt 0:00:02]} e5 {[%emt 0:00:01]} 2. Nf3 {[%emt 0:00:14]} Nf6 {[%emt 0:00:02]} 3. Nc3 {[%emt 0:00:12]} Nc6 {[%emt 0:00:02]} 4. Bb5 {[%emt 0:00:13]} Bb4 {[%emt 0:00:04]} 5. O-O {[%emt 0:00:08]} O-O {[%emt 0:00:31]} 6. d3 {[%emt 0:00:06]} Bxc3 {[%emt 0:00:02]} 7. bxc3 {[%emt 0:00:02]} d6 {[%emt 0:00:01]} 8. Bg5 {[%emt 0:00:19]} a6 {[%emt 0:00:34]} 9. Bxc6 {[%emt 0:00:14]} bxc6 {[%emt 0:00:02]} 10. h3 {[%emt 0:00:23]} c5 {[%emt 0:00:28]} 11. c4 {[%emt 0:00:34]} Qe7 {[%emt 0:00:20]} 12. Qd2 {[%emt 0:00:30]} Qe6 {[%emt 0:00:20]} 13. Rab1 {[%emt 0:00:10]} Nd7 {[%emt 0:01:08]} 14. Nh4 {[%emt 0:00:22]} h6 {[%emt 0:00:55]} 15. Be3 {[%emt 0:00:05]} Qf6 {[%emt 0:00:38]} 16. Nf5 {[%emt 0:00:28]} Nb8 {[%emt 0:01:42]} 17. f4 {[%emt 0:00:28]} exf4 {[%emt 0:00:24]} ({Much weaker is} 17... Bxf5 18. fxe5 (18. exf5 Qxf5 19. fxe5 Qxe5 $11) 18... Qxe5 19. Rxf5 $11) 18. Rxf4 {[%emt 0:00:17]} Bxf5 $1 {[%emt 0:00:02]} 19. Rxf5 {[%emt 0:00:03]} Qg6 {[%emt 0:00:01]} 20. Rb7 {[%emt 0:04:43]} Rc8 {[%emt 0:00:02]} 21. Rf4 {[%emt 0:00:49] Rg4 would now be deadly.} (21. Qa5 $5 Nc6 $8 22. Qa4 $14) 21... Qe6 {[%emt 0:00:38]} 22. Rg4 {[%emt 0:00:47]} Kh7 {[%emt 0:00:01]} 23. Qf2 {[%emt 0:00:19] An uneventful encounter.   Weighted Error Value: White=0.10 (very precise) /Black=0.05 (flawless) .  Inaccurate:     	White=2     	---        OK:         	White=4     	Black=7      Strong:       	---       	Black=1} 1/2-1/2

[Event "Hungarian Junior Rapid-ch 2024"]
[Site "Budapest"]
[Date "2024.03.23"]
[Round "9"]
[White "Pasztor, Balazs"]
[Black "Ilko-Toth, Andras"]
[Result "1-0"]
[ECO "B41"]
[WhiteElo "2406"]
[BlackElo "1902"]
[Annotator "TA"]
[PlyCount "105"]
[EventDate "2024.03.20"]
[EventType "swiss"]
[EventCountry "HUN"]
[SourceTitle "playchess.com"]
[Source "ChessBase"]
[SourceQuality "1"]
[TimeControl "600+5"]

{[%evp 11,105,24,29,29,31,27,52,19,19,1,53,32,58,53,55,-41,61,77,62,67,89,72,66,67,68,36,39,43,71,41,37,41,49,46,57,33,93,81,86,77,76,76,97,68,81,74,193,198,275,275,391,386,381,391,398,384,383,357,377,289,368,332,326,246,279,236,226,205,339,309,514,504,467,432,379,0,640,661,1404,1258,1060,1041,805,504,523,458,458,458,2037,1995,2090,1956,29992,29988,29988,29987]} 1. e4 {[%emt 0:00:03]} c5 {[%emt 0:00:02]} 2. Nf3 {[%emt 0:00:02]} e6 {[%emt 0:00:02]} 3. d4 {[%emt 0:00:02]} cxd4 {[%emt 0:00:01]} 4. Nxd4 {[%emt 0:00:02]} a6 {[%emt 0:00:04]} 5. c4 {[%emt 0:00:03]} Nf6 {[%emt 0:00:03]} 6. Nc3 {[%emt 0:00:03]} Bb4 {[%emt 0:00:02]} 7. Qd3 {[%emt 0:00:02]} Nc6 {[%emt 0:00:02]} 8. Nxc6 {[%emt 0:01:34]} (8. Be2 {sieht schärfer aus.} O-O 9. Bf4 d5 10. Nxc6 bxc6 11. e5) 8... dxc6 {[%emt 0:00:18]} 9. Qxd8+ {[%emt 0:00:06] Weiß steht etwas besser.} Kxd8 {[%emt 0:00:01]} 10. f3 {[%emt 0:00:59]} Ke7 {[%emt 0:00:24]} (10... e5 $11) 11. Bd2 {[%emt 0:00:09]} Rd8 {[%emt 0:00:36]} 12. e5 {[%emt 0:01:27]} Nd7 {[%emt 0:00:03] [#]} 13. Nd5+ {[%emt 0:00:05]} cxd5 {[%emt 0:00:10]} (13... exd5 $15 14. Bxb4+ c5) 14. Bxb4+ $14 {[%emt 0:00:03]} Ke8 {[%emt 0:00:03] Schwarz hat schwache schwarze Felder} 15. Bd6 {[%emt 0:00:21]} dxc4 {[%emt 0:00:02]} 16. Bc7 {[%emt 0:01:27] Weiß steht aktiver.} b5 {[%emt 0:00:02][%cal Oc8b7]} 17. Bxd8 {[%emt 0:00:48]} Kxd8 {[%emt 0:00:02]} 18. O-O-O {[%emt 0:00:15]} Ke7 {[%emt 0:00:01]} 19. f4 {[%emt 0:00:08]} Bb7 {[%emt 0:00:01]} 20. Rg1 {[%emt 0:01:04]} Bd5 {[%emt 0:00:05]} 21. g3 {[%emt 0:00:06]} Rc8 {[%emt 0:00:17]} 22. Bg2 {[%emt 0:00:12]} Nb6 {[%emt 0:00:01]} 23. Kc2 {[%emt 0:00:14]} b4 {[%emt 0:00:05]} (23... Bxg2 $14 24. Rxg2 Nd5) 24. Bxd5 $16 {[%emt 0:00:07] Weiß behält die Zügel nun fest in der Hand.} Nxd5 {[%emt 0:00:03][%mdl 4096] Endspiel. KRR-KRN} 25. Rge1 {[%emt 0:00:03] Gegen Ne3+ gerichtet.} a5 {[%emt 0:00:03]} 26. Rd4 {[%emt 0:00:13]} Rc5 {[%emt 0:00:36]} 27. Ree4 {[%emt 0:00:12][%cal Oc2b1]} c3 {[%emt 0:01:21]} 28. b3 {[%emt 0:00:13][%cal Bb2b3,Bb3c4,Bc4c5,Bc5c6][%mdl 32]} h5 {[%emt 0:00:20]} (28... Kd7 $16 {war angesagt.}) 29. Rc4 $18 {[%emt 0:00:35]} Rxc4 {[%emt 0:00:33]} (29... Rb5 {war nötig.} 30. Rc8 f6 31. exf6+ Nxf6) 30. bxc4 {[%emt 0:00:01] KR-KN} Nc7 {[%emt 0:00:02]} (30... Nb6 $142 31. a3 h4 32. axb4 (32. gxh4 f6 $18) 32... axb4) 31. Rd4 {[%emt 0:00:10]} Na6 {[%emt 0:00:46]} 32. Rd6 {[%emt 0:00:05]} (32. a3 Nc5 33. Rd1 f6 34. exf6+ gxf6 $18) 32... Nc5 {[%emt 0:00:06]} 33. Rc6 {[%emt 0:00:07]} Ne4 {[%emt 0:00:45]} 34. Ra6 {[%emt 0:00:07]} Nd2 {[%emt 0:00:02]} 35. c5 {[%emt 0:00:39]} Nc4 {[%emt 0:00:14]} 36. c6 {[%emt 0:00:08] Droht c7 und aus.} Kd8 {[%emt 0:00:06] [#]} 37. Ra7 {[%emt 0:00:02]} f6 {[%emt 0:00:08]} 38. exf6 {[%emt 0:00:28]} (38. Rxg7 $6 fxe5 39. fxe5 Nxe5 $16) 38... gxf6 {[%emt 0:00:01]} 39. Rh7 {[%emt 0:00:09]} f5 {[%emt 0:00:57]} (39... e5 {ist wohl besser.} 40. fxe5 (40. Rxh5 Kc7 $14) 40... fxe5) 40. Kc1 {[%emt 0:00:13]} (40. Rxh5 Kc7 41. Rh6 e5 $18) 40... Kc8 $2 {[%emt 0:00:10]} (40... Ne3 {ist eine bessere Verteidigung.} 41. Ra7 (41. Rxh5 Kc7 $18) 41... Nc4) 41. h4 {[%emt 0:00:15]} (41. Rxh5 a4 42. Rh8+ Kc7 $16) 41... Kb8 {[%emt 0:00:10]} 42. Rb7+ {[%emt 0:00:10]} Kc8 {[%emt 0:00:05]} 43. Rh7 $2 {[%emt 0:00:08]} (43. Ra7 Kd8 44. Rh7) 43... Kb8 $1 {[%emt 0:00:00]} 44. Rxh5 {[%emt 0:00:03] Schwarz muss nun Rh7 beachten.} a4 {[%emt 0:00:01]} 45. Rh7 {[%emt 0:00:03]} Na5 {[%emt 0:00:06] Verhindert Rb7+} 46. c7+ {[%emt 0:00:12]} Kc8 {[%emt 0:00:02]} 47. Kc2 {[%emt 0:00:02]} Nc4 {[%emt 0:00:05]} 48. h5 {[%emt 0:00:07][%cal Bh4h5,Bh5h6][%mdl 32]} Ne3+ {[%emt 0:00:01] [#]} 49. Kd3 $1 {[%emt 0:00:05]} Nd1 {[%emt 0:00:22]} (49... b3 $142 50. axb3 (50. Kxe3 $2 {zu gefräßig.} bxa2 51. Rh8+ Kxc7 $19) (50. Kxc3 $2 Nd1+ 51. Kd4 bxa2 $19) 50... c2) 50. h6 {[%emt 0:00:04] Droht Matt per Rf7.} b3 {[%emt 0:00:00]} 51. axb3 {[%emt 0:00:06]} a3 {[%emt 0:00:05]} 52. Rh8+ {[%emt 0:00:02]} Kxc7 {[%emt 0:00:02]} 53. Ra8 {[%emt 0:00:02] Gewichteter Fehlerwert: Weiß=0.35/Schwarz=0.47.  Fehler:       	Weiß=2     	Schwarz=9     Ungenau:       	Weiß=3     	Schwarz=3     OK:         	Weiß=14    	Schwarz=11    Bester:       	Weiß=3     	Schwarz=4     Stark:        	Weiß=1     	Schwarz=1} 1-0

[Event "Hungarian Junior Rapid-ch 2024"]
[Site "Budapest"]
[Date "2024.03.23"]
[Round "9"]
[White "Palczert, Matyas"]
[Black "Reviczki, Roland"]
[Result "1-0"]
[ECO "B30"]
[WhiteElo "2297"]
[BlackElo "2238"]
[Annotator "RC"]
[PlyCount "62"]
[EventDate "2024.03.20"]
[EventType "swiss"]
[EventCountry "HUN"]
[SourceTitle "playchess.com"]
[Source "ChessBase"]
[SourceQuality "1"]
[TimeControl "600+5"]

1. e4 {[%emt 0:00:03]} c5 {[%emt 0:00:01]} 2. Nf3 {[%emt 0:00:01]} Nc6 {[%emt 0:00:02]} 3. Bb5 {[%emt 0:00:02]} e5 {[%emt 0:00:30]} 4. O-O {[%emt 0:00:05]} Bd6 {[%emt 0:00:03]} 5. c3 {[%emt 0:00:07]} a6 {[%emt 0:00:04]} 6. Bxc6 {[%emt 0:00:30]} dxc6 {[%emt 0:00:02]} 7. d4 {[%emt 0:00:11]} exd4 {[%emt 0:00:10]} 8. cxd4 {[%emt 0:00:06]} Bg4 {[%emt 0:00:03]} 9. e5 {[%emt 0:01:46]} Bc7 {[%emt 0:00:44]} 10. Nbd2 {[%emt 0:00:43]} Qd5 {[%emt 0:00:45]} 11. h3 {[%emt 0:00:17]} Bh5 {[%emt 0:00:02]} 12. g4 {[%emt 0:00:20]} Bg6 {[%emt 0:00:02]} 13. Qb3 {[%emt 0:00:12]} O-O-O {[%emt 0:01:08]} 14. dxc5 {[%emt 0:01:09]} Qxc5 {[%emt 0:00:14]} 15. Qc3 {[%emt 0:01:07]} Qd5 {[%emt 0:01:13]} 16. b3 {[%emt 0:00:39]} h5 {[%emt 0:00:28]} 17. Qc4 {[%emt 0:00:25]} hxg4 {[%emt 0:00:39]} 18. Qxg4+ {[%emt 0:00:22]} Kb8 {[%emt 0:00:07]} 19. Ba3 {[%emt 0:01:22]} Bxe5 {[%emt 0:00:36]} 20. Nxe5 {[%emt 0:00:12]} Qxe5 {[%emt 0:00:02]} 21. Nc4 {[%emt 0:00:02]} Qc7 {[%emt 0:01:12]} 22. Bc5 {[%emt 0:00:31]} Nf6 {[%emt 0:00:07]} 23. Qg2 {[%emt 0:00:20]} Rd5 {[%emt 0:00:40]} 24. Bb6 {[%emt 0:00:09]} Qd7 {[%emt 0:00:08]} 25. Qg3+ {[%emt 0:00:04]} Ka8 {[%emt 0:01:31]} 26. Bc5 {[%emt 0:00:08]} Rxc5 {[%emt 0:00:20]} 27. Nb6+ {[%emt 0:00:02]} Ka7 {[%emt 0:00:02]} 28. Nxd7 {[%emt 0:00:01]} Nxd7 {[%emt 0:00:01]} 29. Rad1 {[%emt 0:00:06]} Bf5 {[%emt 0:00:10]} 30. Qe3 {[%emt 0:01:04]} Rxh3 {[%emt 0:00:14]} 31. f3 {[%emt 0:00:03]} b6 {[%emt 0:00:21]} 1-0

[Event "Hungarian Junior Rapid-ch 2024"]
[Site "Budapest"]
[Date "2024.03.23"]
[Round "9"]
[White "Tancsa, Tamas"]
[Black "Pasti, Aron"]
[Result "1-0"]
[ECO "B40"]
[WhiteElo "2273"]
[BlackElo "2373"]
[Annotator "RC"]
[PlyCount "58"]
[EventDate "2024.03.20"]
[EventType "swiss"]
[EventCountry "HUN"]
[SourceTitle "playchess.com"]
[Source "ChessBase"]
[SourceQuality "1"]
[TimeControl "600+5"]

1. e4 {[%emt 0:00:10]} c5 {[%emt 0:00:01]} 2. Nf3 {[%emt 0:00:06]} e6 {[%emt 0:00:01]} 3. c4 {[%emt 0:00:08]} Nc6 {[%emt 0:00:01]} 4. Nc3 {[%emt 0:00:01]} Nd4 {[%emt 0:00:01]} 5. Ne2 {[%emt 0:00:01]} Nxf3+ {[%emt 0:00:08]} 6. gxf3 {[%emt 0:00:02]} d5 {[%emt 0:00:01]} 7. d4 {[%emt 0:00:46]} dxc4 {[%emt 0:00:02]} 8. Qa4+ {[%emt 0:01:39]} Bd7 {[%emt 0:00:20]} 9. Qxc4 {[%emt 0:00:02]} Rc8 {[%emt 0:00:11]} 10. Be3 {[%emt 0:00:57]} cxd4 {[%emt 0:01:19]} 11. Qxd4 {[%emt 0:00:01]} Nf6 {[%emt 0:00:01]} 12. Nc3 {[%emt 0:00:06]} Bc5 {[%emt 0:00:01]} 13. Qd2 {[%emt 0:00:04]} Bb4 {[%emt 0:01:20]} 14. Bd4 {[%emt 0:00:02]} Qa5 {[%emt 0:00:05]} 15. Bxf6 {[%emt 0:00:42]} gxf6 {[%emt 0:00:01]} 16. Rc1 {[%emt 0:00:01]} Ke7 {[%emt 0:01:01]} 17. Bd3 {[%emt 0:01:36]} Rhd8 {[%emt 0:01:21]} 18. a3 {[%emt 0:00:07]} Bxc3 {[%emt 0:00:46]} 19. Rxc3 {[%emt 0:00:04]} Qb6 {[%emt 0:00:22]} 20. O-O {[%emt 0:01:03]} e5 {[%emt 0:00:24]} 21. Kh1 {[%emt 0:00:30]} Qd4 {[%emt 0:01:43]} 22. Rxc8 {[%emt 0:02:09]} Bxc8 {[%emt 0:00:02]} 23. Rd1 {[%emt 0:00:28]} Be6 {[%emt 0:00:07]} 24. Qc2 {[%emt 0:00:38]} Rc8 {[%emt 0:00:19]} 25. Qd2 {[%emt 0:00:01]} Bb3 {[%emt 0:00:09]} 26. Rf1 {[%emt 0:00:43]} Rd8 {[%emt 0:00:12]} 27. Qa5 {[%emt 0:00:06]} Qxd3 {[%emt 0:00:03]} 28. Qb4+ {[%emt 0:00:01]} Ke8 {[%emt 0:00:05]} 29. Rc1 {[%emt 0:00:02]} Qxf3+ {[%emt 0:00:02]} 1-0

[Event "Hungarian Junior Rapid-ch 2024"]
[Site "Budapest"]
[Date "2024.03.23"]
[Round "9"]
[White "Foldes, Marton Gabor"]
[Black "Lehocz, Jozsef Jr."]
[Result "0-1"]
[ECO "C00"]
[WhiteElo "2162"]
[BlackElo "2143"]
[Annotator "RC"]
[PlyCount "67"]
[EventDate "2024.03.20"]
[EventType "swiss"]
[EventCountry "HUN"]
[SourceTitle "playchess.com"]
[Source "ChessBase"]
[SourceQuality "1"]
[TimeControl "600+5"]

1. e4 e6 2. d4 b6 3. Bd3 {[%emt 0:00:13]} Bb7 {[%emt 0:00:10]} 4. Nf3 {[%emt 0:00:04]} c5 {[%emt 0:00:02]} 5. c3 {[%emt 0:00:04]} Nf6 {[%emt 0:00:02]} 6. Qe2 {[%emt 0:00:09]} Be7 {[%emt 0:00:02]} 7. O-O {[%emt 0:01:03]} d5 {[%emt 0:00:01]} 8. exd5 {[%emt 0:00:26]} Qxd5 {[%emt 0:00:10]} 9. c4 {[%emt 0:01:19]} Qd8 {[%emt 0:00:36]} 10. dxc5 {[%emt 0:00:36]} Bxc5 {[%emt 0:00:06]} 11. Nc3 {[%emt 0:00:13]} O-O {[%emt 0:00:06]} 12. Bg5 {[%emt 0:00:10]} h6 {[%emt 0:00:20]} 13. Bh4 {[%emt 0:00:30]} Be7 {[%emt 0:01:05]} 14. Rad1 {[%emt 0:00:12]} Qc8 {[%emt 0:00:11]} 15. Bb1 {[%emt 0:02:42]} Nbd7 {[%emt 0:03:43]} 16. Qc2 {[%emt 0:00:08]} Re8 {[%emt 0:01:24]} 17. Qe2 {[%emt 0:01:55]} Bxf3 {[%emt 0:00:17]} 18. Qxf3 {[%emt 0:00:01]} Ne5 {[%emt 0:00:19]} 19. Qe2 {[%emt 0:01:18]} Qxc4 {[%emt 0:00:11]} 20. Qxe5 {[%emt 0:00:11]} Qxh4 {[%emt 0:00:06]} 21. g3 {[%emt 0:00:24]} Qxh2+ {[%emt 0:00:16]} 22. Kxh2 {[%emt 0:00:03]} Ng4+ {[%emt 0:00:00]} 23. Kg2 {[%emt 0:00:05]} Nxe5 {[%emt 0:00:02]} 24. Nb5 {[%emt 0:00:12]} Red8 {[%emt 0:00:26]} 25. Rc1 {[%emt 0:00:02]} Rd2 {[%emt 0:00:14]} 26. Rc7 {[%emt 0:00:06]} Bf6 {[%emt 0:00:07]} 27. Be4 {[%emt 0:00:03]} Rad8 {[%emt 0:00:09]} 28. Nxa7 {[%emt 0:00:01]} Rxb2 {[%emt 0:00:09]} 29. Rc8 {[%emt 0:00:13]} Rxa2 {[%emt 0:00:18]} 30. Rxd8+ {[%emt 0:00:06]} Bxd8 {[%emt 0:00:01]} 31. Nb5 {[%emt 0:00:05]} g6 {[%emt 0:00:10]} 32. Rd1 {[%emt 0:00:01]} Bf6 {[%emt 0:00:05]} 33. Kg1 {[%emt 0:00:04]} Rb2 {[%emt 0:00:10]} 34. Nd6 {[%emt 0:00:03]} 0-1